[Event "*** SCC Grand Prix: Titled Tuesday Blitz"]
[Site "Chess.com"]
[Date "2020.07.07"]
[Round "4"]
[White "EvgenyRomanov"]
[Black "Twitch_ElhamBlitz05"]
[Result "1-0"]
[WhiteElo "2633"]
[BlackElo "2804"]
[TimeControl "180+1"]
[EndTime "10:40:29 PDT"]
[Termination "EvgenyRomanov won by resignation"]

1. e4 {[%clk 0:03:00.9]} 1... c6 {[%clk 0:02:58.2]} 2. c4 {[%clk 0:02:58]} 2...
d5 {[%clk 0:02:59.1]} 3. exd5 {[%clk 0:02:58.3]} 3... cxd5 {[%clk 0:03:00]} 4.
cxd5 {[%clk 0:02:58.8]} 4... Nf6 {[%clk 0:03:00.7]} 5. Qa4+ {[%clk 0:02:59]}
5... Nbd7 {[%clk 0:03:00.5]} 6. Nc3 {[%clk 0:02:58.2]} 6... g6 {[%clk
0:03:00.4]} 7. Bc4 {[%clk 0:02:56.9]} 7... Bg7 {[%clk 0:03:00.5]} 8. Nf3 {[%clk
0:02:56.2]} 8... O-O {[%clk 0:03:00.4]} 9. d3 {[%clk 0:02:56.4]} 9... Nb6 {[%clk
0:02:58.2]} 10. Qb3 {[%clk 0:02:55.1]} 10... Bf5 {[%clk 0:02:58.9]} 11. Be3
{[%clk 0:02:43.7]} 11... Nfd7 {[%clk 0:02:47.6]} 12. O-O {[%clk 0:02:40.2]}
12... Rc8 {[%clk 0:02:45.4]} 13. Rfd1 {[%clk 0:02:38.9]} 13... Nc5 {[%clk
0:02:38.3]} 14. Qa3 {[%clk 0:02:26.9]} 14... Nxc4 {[%clk 0:02:21.1]} 15. dxc4
{[%clk 0:02:26.2]} 15... b6 {[%clk 0:02:14.4]} 16. Nd4 {[%clk 0:02:23.1]} 16...
Bd7 {[%clk 0:02:10]} 17. Ncb5 {[%clk 0:02:20.6]} 17... a5 {[%clk 0:01:42.5]} 18.
Na7 {[%clk 0:02:18.4]} 18... Rc7 {[%clk 0:01:43.1]} 19. Nac6 {[%clk 0:02:17.1]}
19... Qe8 {[%clk 0:01:43.5]} 20. Re1 {[%clk 0:02:01.7]} 20... e5 {[%clk
0:01:24.8]} 21. Nb5 {[%clk 0:01:50.4]} 21... Rxc6 {[%clk 0:01:11.9]} 22. dxc6
{[%clk 0:01:50.2]} 22... Bxc6 {[%clk 0:01:12.8]} 23. Bxc5 {[%clk 0:01:50.3]}
23... bxc5 {[%clk 0:01:13.7]} 24. Qxc5 {[%clk 0:01:50.4]} 24... Qe6 {[%clk
0:01:07.8]} 25. Rad1 {[%clk 0:01:46.9]} 25... Bxg2 {[%clk 0:01:02.5]} 26. Kxg2
{[%clk 0:01:39.4]} 26... Qg4+ {[%clk 0:01:02]} 27. Kf1 {[%clk 0:01:39.3]} 27...
Qh3+ {[%clk 0:01:02.3]} 28. Ke2 {[%clk 0:01:39.3]} 28... e4 {[%clk 0:00:31.7]}
29. Qe3 {[%clk 0:01:22.1]} 29... Qh5+ {[%clk 0:00:23.6]} 30. Kf1 {[%clk
0:01:16.1]} 30... f5 {[%clk 0:00:21.7]} 31. h3 {[%clk 0:01:02.8]} 31... f4
{[%clk 0:00:19.9]} 32. Qxe4 {[%clk 0:01:01.3]} 32... Qxh3+ {[%clk 0:00:19.8]}
33. Qg2 {[%clk 0:01:00.7]} 33... Qh5 {[%clk 0:00:18.7]} 34. f3 {[%clk
0:00:58.9]} 34... Qc5 {[%clk 0:00:14.2]} 35. b3 {[%clk 0:00:57]} 35... Rf5
{[%clk 0:00:14]} 36. Re8+ {[%clk 0:00:43.6]} 36... Bf8 {[%clk 0:00:13.8]} 37.
Nd6 {[%clk 0:00:33.1]} 37... Rg5 {[%clk 0:00:11.8]} 38. Ne4 {[%clk 0:00:32.7]}
38... Rxg2 {[%clk 0:00:08.5]} 39. Nxc5 {[%clk 0:00:32.5]} 39... Rh2 {[%clk
0:00:02.4]} 40. Ne6 {[%clk 0:00:31.2]} 40... Kf7 {[%clk 0:00:02.9]} 41. Rxf8+
{[%clk 0:00:29.1]} 41... Kxe6 {[%clk 0:00:03.8]} 42. Rxf4 {[%clk 0:00:29]} 42...
Rxa2 {[%clk 0:00:03.7]} 43. Re4+ {[%clk 0:00:29]} 43... Kf5 {[%clk 0:00:04.4]}
44. Rd5+ {[%clk 0:00:28.1]} 44... Kf6 {[%clk 0:00:05.3]} 45. Re2 {[%clk
0:00:27.8]} 45... Ra3 {[%clk 0:00:04.9]} 46. Rb5 {[%clk 0:00:24.8]} 46... a4
{[%clk 0:00:04.9]} 47. bxa4 {[%clk 0:00:23]} 47... Rxa4 {[%clk 0:00:05.8]} 48.
Rc2 {[%clk 0:00:22.8]} 48... h5 {[%clk 0:00:06.7]} 49. Kf2 {[%clk 0:00:22.1]}
49... Ra3 {[%clk 0:00:06.5]} 50. c5 {[%clk 0:00:22]} 50... Kg7 {[%clk
0:00:06.6]} 51. c6 {[%clk 0:00:22]} 51... Rc3 {[%clk 0:00:07.4]} 52. Rxc3 {[%clk
0:00:21.5]} 1-0

[Event "*** SCC Grand Prix: Titled Tuesday Blitz"]
[Site "Chess.com"]
[Date "2020.07.07"]
[Round "4"]
[White "Varshi_chess"]
[Black "KingCrusher275"]
[Result "0-1"]
[WhiteElo "2251"]
[BlackElo "2438"]
[TimeControl "180+1"]
[EndTime "10:40:29 PDT"]
[Termination "KingCrusher275 won by resignation"]

1. e4 {[%clk 0:03:00.9]} 1... c5 {[%clk 0:02:59.7]} 2. Nc3 {[%clk 0:02:59.3]}
2... e6 {[%clk 0:02:59.9]} 3. Nge2 {[%clk 0:02:59.2]} 3... Nc6 {[%clk
0:02:58.3]} 4. d4 {[%clk 0:02:57.7]} 4... cxd4 {[%clk 0:02:59.2]} 5. Nxd4 {[%clk
0:02:57.8]} 5... Qc7 {[%clk 0:02:59.9]} 6. Be2 {[%clk 0:02:56.9]} 6... a6 {[%clk
0:02:55.7]} 7. O-O {[%clk 0:02:56.7]} 7... Nf6 {[%clk 0:02:54.9]} 8. Be3 {[%clk
0:02:55.2]} 8... Bb4 {[%clk 0:02:54.9]} 9. f3 {[%clk 0:02:50.6]} 9... Bxc3
{[%clk 0:02:49.3]} 10. bxc3 {[%clk 0:02:49.1]} 10... O-O {[%clk 0:02:42.9]} 11.
Kh1 {[%clk 0:02:47.9]} 11... d5 {[%clk 0:02:34.7]} 12. Bg5 {[%clk 0:02:37.8]}
12... Nd7 {[%clk 0:02:05.2]} 13. exd5 {[%clk 0:02:33.4]} 13... exd5 {[%clk
0:02:04]} 14. Bd3 {[%clk 0:02:16.8]} 14... Nde5 {[%clk 0:01:57.6]} 15. Bf4
{[%clk 0:02:15.5]} 15... Qa5 {[%clk 0:01:47.9]} 16. Nxc6 {[%clk 0:02:11]} 16...
Nxc6 {[%clk 0:01:48]} 17. Qe1 {[%clk 0:02:08.2]} 17... Qd8 {[%clk 0:01:29.6]}
18. Qg3 {[%clk 0:02:04.4]} 18... Qf6 {[%clk 0:01:25.7]} 19. Rae1 {[%clk
0:01:54.3]} 19... Be6 {[%clk 0:01:21.8]} 20. Rb1 {[%clk 0:01:21.9]} 20... b5
{[%clk 0:01:12.7]} 21. Rbe1 {[%clk 0:01:09.5]} 21... Qxc3 {[%clk 0:01:05.9]} 22.
Re5 {[%clk 0:00:59.9]} 22... Ne7 {[%clk 0:00:49.6]} 23. Bxh7+ {[%clk 0:00:48.3]}
23... Kxh7 {[%clk 0:00:44.6]} 24. Qh4+ {[%clk 0:00:48.2]} 24... Kg8 {[%clk
0:00:40.9]} 25. Qxe7 {[%clk 0:00:18.4]} 25... Qc4 {[%clk 0:00:33.7]} 26. Rfe1
{[%clk 0:00:11.8]} 26... Qxf4 {[%clk 0:00:32.4]} 27. Rh5 {[%clk 0:00:09.5]}
27... Rfe8 {[%clk 0:00:23.8]} 28. Qc5 {[%clk 0:00:09.2]} 28... Bf5 {[%clk
0:00:19.2]} 29. Rf1 {[%clk 0:00:06.1]} 29... Bg6 {[%clk 0:00:19.3]} 30. Rh3
{[%clk 0:00:05.1]} 30... Rad8 {[%clk 0:00:17.7]} 31. Qf2 {[%clk 0:00:03.7]}
31... d4 {[%clk 0:00:16.4]} 32. Rd1 {[%clk 0:00:03.6]} 32... d3 {[%clk
0:00:14.8]} 33. cxd3 {[%clk 0:00:02.9]} 33... Rxd3 {[%clk 0:00:15.1]} 34. Rxd3
{[%clk 0:00:02.9]} 34... Qc1+ {[%clk 0:00:14.6]} 35. Qg1 {[%clk 0:00:01.9]}
35... Qxg1+ {[%clk 0:00:14.8]} 36. Kxg1 {[%clk 0:00:01.8]} 36... Bxd3 {[%clk
0:00:15.7]} 37. f4 {[%clk 0:00:01.3]} 37... Re2 {[%clk 0:00:14.2]} 38. Rf3
{[%clk 0:00:01.2]} 38... Rxa2 {[%clk 0:00:14.5]} 39. f5 {[%clk 0:00:01.7]} 39...
Bc4 {[%clk 0:00:14.2]} 40. Rc3 {[%clk 0:00:01.9]} 40... Ra4 {[%clk 0:00:13.6]}
41. Kf2 {[%clk 0:00:02.1]} 41... Ra1 {[%clk 0:00:13.9]} 42. g3 {[%clk
0:00:02.6]} 42... Rf1+ {[%clk 0:00:14.8]} 43. Ke3 {[%clk 0:00:02.6]} 43... Rxf5
{[%clk 0:00:15.5]} 44. Kd4 {[%clk 0:00:02.5]} 44... Rh5 {[%clk 0:00:15.9]} 0-1

[Event "*** SCC Grand Prix: Titled Tuesday Blitz"]
[Site "Chess.com"]
[Date "2020.07.07"]
[Round "4"]
[White "GEKKESPONS"]
[Black "Al_Shima"]
[Result "1-0"]
[WhiteElo "2550"]
[BlackElo "2341"]
[TimeControl "180+1"]
[EndTime "10:40:30 PDT"]
[Termination "GEKKESPONS won by resignation"]

1. d4 {[%clk 0:03:00.9]} 1... e5 {[%clk 0:02:59]} 2. dxe5 {[%clk 0:02:59.9]}
2... Nc6 {[%clk 0:02:57.5]} 3. Nf3 {[%clk 0:02:58.9]} 3... Qe7 {[%clk
0:02:57.4]} 4. Bf4 {[%clk 0:02:47.2]} 4... Qb4+ {[%clk 0:02:56.3]} 5. Bd2 {[%clk
0:02:45.9]} 5... Qxb2 {[%clk 0:02:56.1]} 6. Nc3 {[%clk 0:02:36]} 6... a6 {[%clk
0:02:48.9]} 7. Rb1 {[%clk 0:02:29.1]} 7... Qa3 {[%clk 0:02:48]} 8. Rb3 {[%clk
0:02:10.3]} 8... Qe7 {[%clk 0:02:44.4]} 9. Nd5 {[%clk 0:02:07.3]} 9... Qd8
{[%clk 0:02:43.8]} 10. e4 {[%clk 0:01:49.4]} 10... Bc5 {[%clk 0:02:34.7]} 11.
Bf4 {[%clk 0:01:18.8]} 11... Nge7 {[%clk 0:02:04.5]} 12. e6 {[%clk 0:00:56.7]}
12... d6 {[%clk 0:01:58.4]} 13. exf7+ {[%clk 0:00:55.3]} 13... Kxf7 {[%clk
0:01:55.8]} 14. Ng5+ {[%clk 0:00:46.6]} 14... Ke8 {[%clk 0:01:54.2]} 15. Be2
{[%clk 0:00:40.2]} 15... Nd4 {[%clk 0:01:34.4]} 16. Rg3 {[%clk 0:00:39.5]} 16...
Nxe2 {[%clk 0:01:28.1]} 17. Qxe2 {[%clk 0:00:39.3]} 17... Nxd5 {[%clk
0:01:25.7]} 18. exd5+ {[%clk 0:00:35.4]} 18... Qe7 {[%clk 0:01:25]} 19. Be3
{[%clk 0:00:34.7]} 19... Bf5 {[%clk 0:00:48.3]} 20. O-O {[%clk 0:00:29.4]} 20...
Kd7 {[%clk 0:00:46.6]} 21. Ne6 {[%clk 0:00:26.1]} 21... Bxe6 {[%clk 0:00:34.9]}
22. Bxc5 {[%clk 0:00:18.8]} 22... Bxd5 {[%clk 0:00:20.1]} 23. Qxe7+ {[%clk
0:00:19.7]} 23... Kxe7 {[%clk 0:00:19.9]} 24. Rxg7+ {[%clk 0:00:20.3]} 24... Bf7
{[%clk 0:00:19.2]} 25. Re1+ {[%clk 0:00:19.3]} 25... Kf8 {[%clk 0:00:19.1]} 26.
Bd4 {[%clk 0:00:19.4]} 26... Rg8 {[%clk 0:00:15.5]} 27. Rxh7 {[%clk 0:00:17.9]}
27... Re8 {[%clk 0:00:15.4]} 28. Rxe8+ {[%clk 0:00:17.5]} 28... Kxe8 {[%clk
0:00:16]} 29. f3 {[%clk 0:00:16.9]} 29... Rg5 {[%clk 0:00:14]} 30. h4 {[%clk
0:00:15.4]} 30... Rh5 {[%clk 0:00:12.6]} 31. Rxh5 {[%clk 0:00:14.9]} 31... Bxh5
{[%clk 0:00:13.5]} 32. g4 {[%clk 0:00:15.2]} 32... Bg6 {[%clk 0:00:14.3]} 33. c3
{[%clk 0:00:14.8]} 33... c5 {[%clk 0:00:13.5]} 34. Be3 {[%clk 0:00:14.6]} 34...
b5 {[%clk 0:00:13.2]} 35. h5 {[%clk 0:00:14.6]} 35... Bf7 {[%clk 0:00:13.6]} 36.
Kf2 {[%clk 0:00:13.5]} 36... Bxa2 {[%clk 0:00:13.4]} 37. g5 {[%clk 0:00:13.3]}
37... a5 {[%clk 0:00:12.8]} 38. g6 {[%clk 0:00:11.5]} 38... Bb1 {[%clk
0:00:10.4]} 39. Bf4 {[%clk 0:00:11.6]} 39... d5 {[%clk 0:00:08.6]} 40. Bd6
{[%clk 0:00:11.3]} 40... b4 {[%clk 0:00:07.2]} 41. Bxc5 {[%clk 0:00:10.1]} 41...
bxc3 {[%clk 0:00:07.7]} 42. Ke3 {[%clk 0:00:10.1]} 42... c2 {[%clk 0:00:06.7]}
43. Ba3 {[%clk 0:00:10.1]} 43... a4 {[%clk 0:00:06.6]} 44. Kd4 {[%clk
0:00:09.2]} 44... Ba2 {[%clk 0:00:03.6]} 45. h6 {[%clk 0:00:09.1]} 45... Bc4
{[%clk 0:00:04.5]} 46. h7 {[%clk 0:00:08.5]} 1-0

[Event "*** SCC Grand Prix: Titled Tuesday Blitz"]
[Site "Chess.com"]
[Date "2020.07.07"]
[Round "4"]
[White "DenLaz"]
[Black "ketster"]
[Result "1-0"]
[WhiteElo "2688"]
[BlackElo "2440"]
[TimeControl "180+1"]
[EndTime "10:40:32 PDT"]
[Termination "DenLaz won on time"]

1. Nf3 {[%clk 0:03:00.9]} 1... Nf6 {[%clk 0:02:59.9]} 2. c4 {[%clk 0:03:00]}
2... e6 {[%clk 0:02:58.2]} 3. b3 {[%clk 0:02:58.3]} 3... d5 {[%clk 0:02:57.9]}
4. Bb2 {[%clk 0:02:59.2]} 4... c5 {[%clk 0:02:58.1]} 5. g3 {[%clk 0:02:57.6]}
5... d4 {[%clk 0:02:57.8]} 6. Bg2 {[%clk 0:02:56.6]} 6... Nc6 {[%clk 0:02:58.1]}
7. O-O {[%clk 0:02:55.1]} 7... Be7 {[%clk 0:02:57.8]} 8. e3 {[%clk 0:02:53.7]}
8... e5 {[%clk 0:02:57.5]} 9. exd4 {[%clk 0:02:54]} 9... exd4 {[%clk 0:02:57.6]}
10. d3 {[%clk 0:02:50.6]} 10... O-O {[%clk 0:02:57.7]} 11. Na3 {[%clk
0:02:49.7]} 11... Bg4 {[%clk 0:02:53]} 12. h3 {[%clk 0:02:48.2]} 12... Bh5
{[%clk 0:02:52.6]} 13. g4 {[%clk 0:02:46.5]} 13... Bg6 {[%clk 0:02:52]} 14. Nc2
{[%clk 0:02:45.1]} 14... a5 {[%clk 0:02:51]} 15. Nh4 {[%clk 0:02:39.9]} 15...
Nd7 {[%clk 0:02:34.6]} 16. Nxg6 {[%clk 0:02:38.7]} 16... hxg6 {[%clk 0:02:29.5]}
17. Na3 {[%clk 0:02:26.7]} 17... g5 {[%clk 0:02:18.3]} 18. Nb5 {[%clk 0:02:24]}
18... Nde5 {[%clk 0:02:16.7]} 19. f4 {[%clk 0:02:23]} 19... gxf4 {[%clk
0:02:14.5]} 20. Rxf4 {[%clk 0:02:23.9]} 20... Ng6 {[%clk 0:02:14.6]} 21. Rf1
{[%clk 0:02:22.5]} 21... Bg5 {[%clk 0:02:10.2]} 22. Bc1 {[%clk 0:02:17.3]} 22...
Rb8 {[%clk 0:01:54.1]} 23. a3 {[%clk 0:02:06.8]} 23... Nce5 {[%clk 0:01:51.3]}
24. Be4 {[%clk 0:01:55.5]} 24... b6 {[%clk 0:01:33.4]} 25. Ra2 {[%clk
0:01:50.8]} 25... Bxc1 {[%clk 0:01:28.6]} 26. Qxc1 {[%clk 0:01:49.6]} 26... Qh4
{[%clk 0:01:28.4]} 27. Kg2 {[%clk 0:01:47.3]} 27... Qe7 {[%clk 0:00:44.5]} 28.
Raf2 {[%clk 0:01:41.7]} 28... Nh4+ {[%clk 0:00:41.5]} 29. Kg3 {[%clk 0:01:39.7]}
29... Neg6 {[%clk 0:00:39.5]} 30. Bxg6 {[%clk 0:01:13.3]} 30... Nxg6 {[%clk
0:00:38]} 31. Qe1 {[%clk 0:01:00.7]} 31... Qh4+ {[%clk 0:00:33.9]} 32. Kg2
{[%clk 0:00:59.1]} 32... Rbe8 {[%clk 0:00:33.9]} 33. Re2 {[%clk 0:00:54.4]}
33... Qxe1 {[%clk 0:00:28.2]} 34. Rexe1 {[%clk 0:00:53.4]} 34... Nf4+ {[%clk
0:00:25.1]} 35. Kg3 {[%clk 0:00:40]} 35... Rxe1 {[%clk 0:00:21.9]} 36. Rxe1
{[%clk 0:00:40]} 36... Nxd3 {[%clk 0:00:22.3]} 37. Re7 {[%clk 0:00:38.6]} 37...
Rd8 {[%clk 0:00:18.2]} 38. Nc7 {[%clk 0:00:35.5]} 38... Nc1 {[%clk 0:00:16.5]}
39. Nd5 {[%clk 0:00:35.6]} 39... Nxb3 {[%clk 0:00:16.2]} 40. Nxb6 {[%clk
0:00:16.5]} 40... d3 {[%clk 0:00:14.6]} 41. Re1 {[%clk 0:00:16.9]} 41... d2
{[%clk 0:00:13]} 42. Rd1 {[%clk 0:00:17.2]} 42... Rd3+ {[%clk 0:00:09.9]} 43.
Kg2 {[%clk 0:00:15.3]} 43... Rc3 {[%clk 0:00:09]} 44. Kf2 {[%clk 0:00:14.7]}
44... Rxh3 {[%clk 0:00:08.5]} 45. Nd5 {[%clk 0:00:14]} 45... Rc3 {[%clk
0:00:06]} 46. Nxc3 {[%clk 0:00:13.7]} 1-0

[Event "*** SCC Grand Prix: Titled Tuesday Blitz"]
[Site "Chess.com"]
[Date "2020.07.07"]
[Round "4"]
[White "druskacik"]
[Black "FairChess_on_YouTube"]
[Result "1/2-1/2"]
[WhiteElo "2580"]
[BlackElo "2986"]
[TimeControl "180+1"]
[EndTime "10:40:34 PDT"]
[Termination "Game drawn by repetition"]

1. e4 {[%clk 0:03:00.9]} 1... c5 {[%clk 0:02:59.3]} 2. Nf3 {[%clk 0:02:59.3]}
2... e6 {[%clk 0:02:59.7]} 3. d4 {[%clk 0:02:58.9]} 3... cxd4 {[%clk 0:03:00.6]}
4. Nxd4 {[%clk 0:02:59.8]} 4... Nc6 {[%clk 0:03:00.4]} 5. Nc3 {[%clk 0:02:59.6]}
5... Qc7 {[%clk 0:03:00.5]} 6. g3 {[%clk 0:02:59.6]} 6... a6 {[%clk 0:02:58]} 7.
Bg2 {[%clk 0:02:57.9]} 7... Nge7 {[%clk 0:02:54.9]} 8. Bf4 {[%clk 0:02:18.4]}
8... e5 {[%clk 0:02:51.7]} 9. Nxc6 {[%clk 0:02:17.3]} 9... dxc6 {[%clk
0:02:36.9]} 10. Be3 {[%clk 0:02:13.5]} 10... b5 {[%clk 0:02:31.9]} 11. a4 {[%clk
0:02:02.4]} 11... b4 {[%clk 0:02:21.3]} 12. Nb1 {[%clk 0:02:01.7]} 12... a5
{[%clk 0:02:19.5]} 13. O-O {[%clk 0:01:58.9]} 13... Ba6 {[%clk 0:02:17.5]} 14.
Re1 {[%clk 0:01:56.8]} 14... Rd8 {[%clk 0:02:17.7]} 15. Qc1 {[%clk 0:01:49.9]}
15... c5 {[%clk 0:02:10.3]} 16. c3 {[%clk 0:01:43.1]} 16... Nc6 {[%clk
0:02:06.2]} 17. Nd2 {[%clk 0:01:36.5]} 17... Be7 {[%clk 0:02:05]} 18. Bf1 {[%clk
0:01:34.7]} 18... Bb7 {[%clk 0:02:00.9]} 19. Qc2 {[%clk 0:01:25.7]} 19... O-O
{[%clk 0:02:00.2]} 20. Rad1 {[%clk 0:01:24.8]} 20... bxc3 {[%clk 0:01:45.9]} 21.
bxc3 {[%clk 0:01:24]} 21... Qc8 {[%clk 0:01:45.3]} 22. Nb3 {[%clk 0:01:16.5]}
22... h5 {[%clk 0:01:02.2]} 23. Bc4 {[%clk 0:00:48.8]} 23... h4 {[%clk
0:00:51.7]} 24. Bd5 {[%clk 0:00:46.6]} 24... hxg3 {[%clk 0:00:40.3]} 25. hxg3
{[%clk 0:00:46]} 25... Qh3 {[%clk 0:00:38.8]} 26. Nxc5 {[%clk 0:00:41]} 26...
Rd6 {[%clk 0:00:37.7]} 27. Nxb7 {[%clk 0:00:39]} 27... Rg6 {[%clk 0:00:37.2]}
28. Qe2 {[%clk 0:00:30.5]} 28... Bh4 {[%clk 0:00:31.5]} 29. Qh5 {[%clk
0:00:12.9]} 29... Ne7 {[%clk 0:00:22.3]} 30. Bxf7+ {[%clk 0:00:09.8]} 30... Kxf7
{[%clk 0:00:16.7]} 31. Nd6+ {[%clk 0:00:09.6]} 31... Kg8 {[%clk 0:00:04.8]} 32.
Nf5 {[%clk 0:00:09.8]} 32... Rxf5 {[%clk 0:00:03.6]} 33. exf5 {[%clk 0:00:10]}
33... Rxg3+ {[%clk 0:00:03.6]} 34. fxg3 {[%clk 0:00:10.4]} 34... Qxg3+ {[%clk
0:00:04.5]} 35. Kf1 {[%clk 0:00:10.6]} 35... Qh3+ {[%clk 0:00:04.4]} 36. Ke2
{[%clk 0:00:10.7]} 36... Qg2+ {[%clk 0:00:04.2]} 37. Kd3 {[%clk 0:00:10.5]}
37... Qd5+ {[%clk 0:00:04.7]} 38. Bd4 {[%clk 0:00:09.1]} 38... exd4 {[%clk
0:00:02.6]} 39. Qe8+ {[%clk 0:00:07.7]} 39... Kh7 {[%clk 0:00:02.4]} 40. Qh5+
{[%clk 0:00:07.9]} 40... Kg8 {[%clk 0:00:03]} 41. Qxh4 {[%clk 0:00:08.3]} 41...
Qf3+ {[%clk 0:00:03.1]} 42. Kc2 {[%clk 0:00:07.9]} 42... Qxc3+ {[%clk
0:00:02.7]} 43. Kb1 {[%clk 0:00:08.3]} 43... Qb3+ {[%clk 0:00:03.1]} 44. Kc1
{[%clk 0:00:08.8]} 44... Qc3+ {[%clk 0:00:03.3]} 45. Kb1 {[%clk 0:00:09.2]}
45... Qb3+ {[%clk 0:00:03.7]} 46. Kc1 {[%clk 0:00:09.6]} 46... Qc3+ {[%clk
0:00:04.1]} 47. Kb1 {[%clk 0:00:09.3]} 1/2-1/2

[Event "*** SCC Grand Prix: Titled Tuesday Blitz"]
[Site "Chess.com"]
[Date "2020.07.07"]
[Round "4"]
[White "FabianoCaruana"]
[Black "S2PAc"]
[Result "1-0"]
[WhiteElo "2980"]
[BlackElo "2769"]
[TimeControl "180+1"]
[EndTime "10:40:35 PDT"]
[Termination "FabianoCaruana won by resignation"]

1. e4 {[%clk 0:03:00.9]} 1... e6 {[%clk 0:03:00.3]} 2. d4 {[%clk 0:03:00.6]}
2... d5 {[%clk 0:03:01.2]} 3. Nc3 {[%clk 0:03:00.4]} 3... Bb4 {[%clk 0:03:01.6]}
4. exd5 {[%clk 0:03:00]} 4... exd5 {[%clk 0:03:01.6]} 5. Bd3 {[%clk 0:03:00.7]}
5... Nf6 {[%clk 0:02:55.1]} 6. Ne2 {[%clk 0:03:00]} 6... O-O {[%clk 0:02:30.4]}
7. O-O {[%clk 0:02:59.1]} 7... Nbd7 {[%clk 0:02:29.3]} 8. Bg5 {[%clk 0:02:51]}
8... c6 {[%clk 0:02:23.8]} 9. f3 {[%clk 0:02:44.5]} 9... h6 {[%clk 0:02:21.7]}
10. Bh4 {[%clk 0:02:43.8]} 10... Re8 {[%clk 0:02:22]} 11. Qd2 {[%clk 0:02:38.3]}
11... Bd6 {[%clk 0:02:19.1]} 12. Rae1 {[%clk 0:02:36.7]} 12... Nf8 {[%clk
0:02:10.1]} 13. Bg3 {[%clk 0:02:20.5]} 13... Ng6 {[%clk 0:01:58.6]} 14. Bxg6
{[%clk 0:02:18.1]} 14... fxg6 {[%clk 0:01:58]} 15. Nc1 {[%clk 0:02:05.6]} 15...
Bf5 {[%clk 0:01:44.9]} 16. Nd3 {[%clk 0:01:59.4]} 16... Bxd3 {[%clk 0:01:36.8]}
17. Qxd3 {[%clk 0:02:00.3]} 17... Bxg3 {[%clk 0:01:36.6]} 18. hxg3 {[%clk
0:01:59.9]} 18... Qd6 {[%clk 0:01:36.7]} 19. Qxg6 {[%clk 0:01:57.3]} 19... Qb4
{[%clk 0:01:31.6]} 20. Qd3 {[%clk 0:01:56.7]} 20... Rxe1 {[%clk 0:01:13.8]} 21.
Rxe1 {[%clk 0:01:57.6]} 21... Qxb2 {[%clk 0:01:14.6]} 22. Rb1 {[%clk 0:01:55.5]}
22... Qa3 {[%clk 0:01:14.6]} 23. Nxd5 {[%clk 0:01:38.2]} 23... Qxd3 {[%clk
0:00:58.6]} 24. Nxf6+ {[%clk 0:01:37.2]} 24... gxf6 {[%clk 0:00:51]} 25. cxd3
{[%clk 0:01:38.1]} 25... Rd8 {[%clk 0:00:37.3]} 26. Rxb7 {[%clk 0:01:36.1]}
26... Rxd4 {[%clk 0:00:37.4]} 27. Rb3 {[%clk 0:01:34]} 27... Ra4 {[%clk
0:00:27.4]} 28. a3 {[%clk 0:01:33.1]} 28... Kf7 {[%clk 0:00:26.9]} 29. Kf2
{[%clk 0:01:32.3]} 29... Ke6 {[%clk 0:00:27.4]} 30. Ke3 {[%clk 0:01:30.8]} 30...
Kd5 {[%clk 0:00:27.7]} 31. g4 {[%clk 0:01:29.4]} 31... a5 {[%clk 0:00:23.2]} 32.
Rc3 {[%clk 0:01:25.1]} 32... c5 {[%clk 0:00:22.2]} 33. Rb3 {[%clk 0:01:24.4]}
33... Kc6 {[%clk 0:00:22.5]} 34. g3 {[%clk 0:01:18.7]} 34... Kd6 {[%clk
0:00:20.8]} 35. Rb6+ {[%clk 0:01:16.9]} 35... Ke7 {[%clk 0:00:20.9]} 36. Rb3
{[%clk 0:01:12.9]} 36... Kd6 {[%clk 0:00:20.5]} 37. f4 {[%clk 0:01:12.1]} 37...
Ke7 {[%clk 0:00:20.6]} 38. Kd2 {[%clk 0:00:57.3]} 38... c4 {[%clk 0:00:20.2]}
39. dxc4 {[%clk 0:00:54.6]} 39... Rxc4 {[%clk 0:00:21.1]} 40. Rc3 {[%clk
0:00:45.6]} 40... Rd4+ {[%clk 0:00:20.4]} 41. Kc2 {[%clk 0:00:44.6]} 41... Re4
{[%clk 0:00:20.9]} 42. Kd2 {[%clk 0:00:36.3]} 42... Rd4+ {[%clk 0:00:20.6]} 43.
Ke3 {[%clk 0:00:36.6]} 43... Ra4 {[%clk 0:00:20.5]} 44. Kf3 {[%clk 0:00:37]}
44... Kf8 {[%clk 0:00:20.8]} 45. Kg2 {[%clk 0:00:36.5]} 45... Kg7 {[%clk
0:00:21.1]} 46. Kh3 {[%clk 0:00:36.9]} 46... Kg6 {[%clk 0:00:21.6]} 47. Kh4
{[%clk 0:00:37.1]} 47... Rd4 {[%clk 0:00:19.6]} 48. Rc7 {[%clk 0:00:36.1]} 48...
f5 {[%clk 0:00:18.5]} 49. Rc6+ {[%clk 0:00:35.7]} 49... Kg7 {[%clk 0:00:17.7]}
50. gxf5 {[%clk 0:00:35.8]} 50... Rd3 {[%clk 0:00:18.1]} 51. a4 {[%clk
0:00:31.8]} 51... Ra3 {[%clk 0:00:17.5]} 52. Rc4 {[%clk 0:00:31.8]} 52... Kh7
{[%clk 0:00:15.5]} 53. Kg4 {[%clk 0:00:29.2]} 53... Kg7 {[%clk 0:00:15.6]} 54.
Rd4 {[%clk 0:00:28]} 54... Kf7 {[%clk 0:00:14.3]} 55. Rd6 {[%clk 0:00:26.6]}
55... Kg7 {[%clk 0:00:13.5]} 56. Rg6+ {[%clk 0:00:25.5]} 56... Kh7 {[%clk
0:00:13.4]} 57. Kh5 {[%clk 0:00:26.1]} 57... Rxa4 {[%clk 0:00:12.1]} 58. Rxh6+
{[%clk 0:00:26.3]} 58... Kg7 {[%clk 0:00:13]} 59. Kg5 {[%clk 0:00:25.1]} 59...
Ra1 {[%clk 0:00:12.1]} 60. f6+ {[%clk 0:00:25.1]} 1-0